[Event "*** Titled Tuesday Blitz"]
[Site "Chess.com"]
[Date "2020.05.12"]
[Round "4"]
[White "MightyGMpretender"]
[Black "ManuDavid2910"]
[Result "1-0"]
[WhiteElo "2586"]
[BlackElo "2704"]
[TimeControl "180+1"]
[EndTime "10:38:44 PDT"]
[Termination "MightyGMpretender won by resignation"]

1. d4 {[%clk 0:03:00.9]} 1... Nf6 {[%clk 0:02:59.8]} 2. Nf3 {[%clk 0:03:01.1]}
2... e6 {[%clk 0:03:00.3]} 3. Bg5 {[%clk 0:03:00]} 3... d5 {[%clk 0:03:01.2]} 4.
e3 {[%clk 0:02:56]} 4... c5 {[%clk 0:03:01.4]} 5. c3 {[%clk 0:02:55.9]} 5... Nc6
{[%clk 0:03:01.6]} 6. Nbd2 {[%clk 0:02:55.8]} 6... Be7 {[%clk 0:03:01.9]} 7. Bd3
{[%clk 0:02:53.9]} 7... O-O {[%clk 0:03:02.1]} 8. Qe2 {[%clk 0:02:45.7]} 8... h6
{[%clk 0:03:01.3]} 9. h4 {[%clk 0:02:44.6]} 9... Nd7 {[%clk 0:02:58.9]} 10. Bc2
{[%clk 0:02:13.6]} 10... Re8 {[%clk 0:02:50.5]} 11. Bf4 {[%clk 0:02:08.4]} 11...
Bf6 {[%clk 0:02:47.9]} 12. g4 {[%clk 0:02:06.8]} 12... e5 {[%clk 0:02:47]} 13.
dxe5 {[%clk 0:02:05.5]} 13... Ndxe5 {[%clk 0:02:47.1]} 14. g5 {[%clk 0:02:01]}
14... Nxf3+ {[%clk 0:02:47.2]} 15. Qxf3 {[%clk 0:01:43.4]} 15... Be5 {[%clk
0:02:25]} 16. gxh6 {[%clk 0:01:34.5]} 16... d4 {[%clk 0:01:56.4]} 17. Bb3 {[%clk
0:01:10.6]} 17... Bxf4 {[%clk 0:01:50.8]} 18. Qxf4 {[%clk 0:01:09.4]} 18... Ne5
{[%clk 0:01:51.1]} 19. Bxf7+ {[%clk 0:00:56.1]} 19... Nxf7 {[%clk 0:01:36]} 20.
Rg1 {[%clk 0:00:54.7]} 20... dxe3 {[%clk 0:01:02]} 21. O-O-O {[%clk 0:00:24]}
21... Nxh6 {[%clk 0:00:37.7]} 22. Ne4 {[%clk 0:00:17.6]} 22... Qe7 {[%clk
0:00:35]} 23. Nf6+ {[%clk 0:00:17.1]} 23... Kh8 {[%clk 0:00:35]} 24. Nxe8 {[%clk
0:00:17.4]} 24... Qxe8 {[%clk 0:00:35.5]} 25. Qg5 {[%clk 0:00:11.9]} 25... Qf7
{[%clk 0:00:25.8]} 26. Rd8+ {[%clk 0:00:11.7]} 26... Kh7 {[%clk 0:00:25.9]} 27.
fxe3 {[%clk 0:00:10.8]} 27... b6 {[%clk 0:00:21.3]} 28. h5 {[%clk 0:00:11.2]}
28... Ng8 {[%clk 0:00:15.1]} 29. Qg6+ {[%clk 0:00:10.6]} 29... Qxg6 {[%clk
0:00:15.3]} 30. hxg6+ {[%clk 0:00:11.5]} 30... Kh6 {[%clk 0:00:16.2]} 31. Rxg8
{[%clk 0:00:12]} 31... Bb7 {[%clk 0:00:17.1]} 32. Rxa8 {[%clk 0:00:11.8]} 32...
Bxa8 {[%clk 0:00:18]} 33. Kd2 {[%clk 0:00:11.4]} 33... Be4 {[%clk 0:00:17.4]}
34. c4 {[%clk 0:00:10.1]} 34... Bxg6 {[%clk 0:00:17.3]} 35. Kc3 {[%clk 0:00:10]}
35... Bf7 {[%clk 0:00:17.2]} 36. Rd1 {[%clk 0:00:10.3]} 36... Be6 {[%clk
0:00:16.9]} 37. Rd6 {[%clk 0:00:10.4]} 1-0

[Event "*** Titled Tuesday Blitz"]
[Site "Chess.com"]
[Date "2020.05.12"]
[Round "4"]
[White "Aygehovit1992"]
[Black "PlayChessSimple"]
[Result "1/2-1/2"]
[WhiteElo "2684"]
[BlackElo "2492"]
[TimeControl "180+1"]
[EndTime "10:38:44 PDT"]
[Termination "Game drawn by repetition"]

1. e4 {[%clk 0:01:33.7]} 1... e6 {[%clk 0:02:58.6]} 2. d4 {[%clk 0:01:29.7]}
2... d5 {[%clk 0:02:58.6]} 3. Nc3 {[%clk 0:01:29.3]} 3... Nf6 {[%clk 0:02:57.7]}
4. Bg5 {[%clk 0:01:28.3]} 4... Bb4 {[%clk 0:02:57.1]} 5. e5 {[%clk 0:01:27.6]}
5... h6 {[%clk 0:02:56.5]} 6. Bc1 {[%clk 0:01:27.5]} 6... Ne4 {[%clk 0:02:55.5]}
7. Ne2 {[%clk 0:01:27]} 7... c5 {[%clk 0:02:53.8]} 8. a3 {[%clk 0:01:26.8]} 8...
Ba5 {[%clk 0:02:48.6]} 9. dxc5 {[%clk 0:01:24.6]} 9... Nxc3 {[%clk 0:02:47.5]}
10. Nxc3 {[%clk 0:01:23.6]} 10... Bxc3+ {[%clk 0:02:46.8]} 11. bxc3 {[%clk
0:01:23.6]} 11... Nd7 {[%clk 0:02:29.2]} 12. Qg4 {[%clk 0:01:19.7]} 12... Kf8
{[%clk 0:02:28.8]} 13. Qd4 {[%clk 0:01:01.6]} 13... Qc7 {[%clk 0:02:24.4]} 14.
Bf4 {[%clk 0:00:59.9]} 14... Qxc5 {[%clk 0:02:19]} 15. Bd3 {[%clk 0:00:57.5]}
15... Qxd4 {[%clk 0:02:15.2]} 16. cxd4 {[%clk 0:00:56.5]} 16... Nb6 {[%clk
0:02:15.7]} 17. Kd2 {[%clk 0:00:50.7]} 17... Bd7 {[%clk 0:02:11.9]} 18. Rhb1
{[%clk 0:00:50.1]} 18... Ke7 {[%clk 0:02:06.4]} 19. Ke2 {[%clk 0:00:49.9]} 19...
Rhc8 {[%clk 0:02:01.7]} 20. Bd2 {[%clk 0:00:49.8]} 20... Ba4 {[%clk 0:02:00.8]}
21. Bb4+ {[%clk 0:00:47]} 21... Ke8 {[%clk 0:02:00.9]} 22. Bc5 {[%clk
0:00:47.7]} 22... Nd7 {[%clk 0:01:50]} 23. Rxb7 {[%clk 0:00:40.1]} 23... Nxc5
{[%clk 0:01:49.7]} 24. dxc5 {[%clk 0:00:41]} 24... Rxc5 {[%clk 0:01:50]} 25. Kd2
{[%clk 0:00:40.7]} 25... Rac8 {[%clk 0:01:48.7]} 26. Ra2 {[%clk 0:00:36.2]}
26... R8c7 {[%clk 0:01:39.4]} 27. Rab2 {[%clk 0:00:34.9]} 27... Kd7 {[%clk
0:01:35.3]} 28. Rxc7+ {[%clk 0:00:33.2]} 28... Kxc7 {[%clk 0:01:20]} 29. Rb4
{[%clk 0:00:32.9]} 29... Be8 {[%clk 0:01:11.4]} 30. Rg4 {[%clk 0:00:33]} 30...
g6 {[%clk 0:01:10.6]} 31. Kc1 {[%clk 0:00:21.9]} 31... d4 {[%clk 0:01:03.8]} 32.
Rxd4 {[%clk 0:00:21.8]} 32... Rxe5 {[%clk 0:01:02.8]} 33. Rc4+ {[%clk
0:00:20.9]} 33... Kd6 {[%clk 0:00:54.2]} 34. Rb4 {[%clk 0:00:20.5]} 34... Bc6
{[%clk 0:00:51.9]} 35. g3 {[%clk 0:00:19.9]} 35... h5 {[%clk 0:00:41.7]} 36. h4
{[%clk 0:00:19.9]} 36... Ra5 {[%clk 0:00:40.6]} 37. Kb2 {[%clk 0:00:19.4]} 37...
Re5 {[%clk 0:00:39.5]} 38. Rb8 {[%clk 0:00:18.5]} 38... Re1 {[%clk 0:00:34.8]}
39. Rf8 {[%clk 0:00:18.5]} 39... Ke7 {[%clk 0:00:32.9]} 40. Rc8 {[%clk
0:00:18.5]} 40... Kd6 {[%clk 0:00:32.3]} 41. Rf8 {[%clk 0:00:18.4]} 41... Ke7
{[%clk 0:00:32.1]} 42. Rb8 {[%clk 0:00:18.5]} 42... Kd6 {[%clk 0:00:29.6]} 43.
Kc3 {[%clk 0:00:16.9]} 43... Ra1 {[%clk 0:00:27]} 44. Kb2 {[%clk 0:00:15.8]}
44... Re1 {[%clk 0:00:27]} 1/2-1/2

[Event "*** Titled Tuesday Blitz"]
[Site "Chess.com"]
[Date "2020.05.12"]
[Round "4"]
[White "Chepaschess"]
[Black "Hanging_pointer"]
[Result "1-0"]
[WhiteElo "2768"]
[BlackElo "2589"]
[TimeControl "180+1"]
[EndTime "10:38:45 PDT"]
[Termination "Chepaschess won by resignation"]

1. d4 {[%clk 0:03:00.9]} 1... d5 {[%clk 0:02:59.8]} 2. Nf3 {[%clk 0:03:00]} 2...
c5 {[%clk 0:02:58.9]} 3. c4 {[%clk 0:02:58.4]} 3... cxd4 {[%clk 0:02:58]} 4.
cxd5 {[%clk 0:02:58]} 4... Qxd5 {[%clk 0:02:57.1]} 5. Nc3 {[%clk 0:02:58.5]}
5... Qd8 {[%clk 0:02:56.1]} 6. Nxd4 {[%clk 0:02:44.3]} 6... a6 {[%clk
0:02:52.5]} 7. Bf4 {[%clk 0:02:37.7]} 7... Nf6 {[%clk 0:02:42.1]} 8. e4 {[%clk
0:02:32.6]} 8... e6 {[%clk 0:02:41.9]} 9. Be2 {[%clk 0:02:29.4]} 9... Nbd7
{[%clk 0:02:38.2]} 10. Nb3 {[%clk 0:02:02.9]} 10... b5 {[%clk 0:02:29.3]} 11.
O-O {[%clk 0:01:45.3]} 11... Bb7 {[%clk 0:02:26]} 12. f3 {[%clk 0:01:43.3]}
12... Nc5 {[%clk 0:02:22.9]} 13. Qxd8+ {[%clk 0:01:38.4]} 13... Rxd8 {[%clk
0:02:22.1]} 14. Be3 {[%clk 0:01:39.1]} 14... Nxb3 {[%clk 0:02:15.5]} 15. axb3
{[%clk 0:01:40]} 15... Be7 {[%clk 0:02:16.1]} 16. Rfd1 {[%clk 0:01:31.7]} 16...
O-O {[%clk 0:02:10.8]} 17. Kf2 {[%clk 0:01:26.9]} 17... Nd7 {[%clk 0:02:07.8]}
18. g3 {[%clk 0:01:21.6]} 18... Nc5 {[%clk 0:01:58.5]} 19. b4 {[%clk 0:01:08.8]}
19... Nd7 {[%clk 0:01:39.3]} 20. Na2 {[%clk 0:01:02.2]} 20... Bf6 {[%clk
0:01:30]} 21. Bd4 {[%clk 0:00:57.3]} 21... Bxd4+ {[%clk 0:01:17]} 22. Rxd4
{[%clk 0:00:57]} 22... Ne5 {[%clk 0:01:17.9]} 23. Rad1 {[%clk 0:00:55.3]} 23...
Rxd4 {[%clk 0:01:17.5]} 24. Rxd4 {[%clk 0:00:55.4]} 24... Rc8 {[%clk 0:01:03.2]}
25. f4 {[%clk 0:00:55.7]} 25... Nc6 {[%clk 0:01:01.4]} 26. Rd7 {[%clk
0:00:54.8]} 26... Ba8 {[%clk 0:01:01.5]} 27. Ke3 {[%clk 0:00:52.8]} 27... Kf8
{[%clk 0:00:54.6]} 28. h4 {[%clk 0:00:51.3]} 28... Ke8 {[%clk 0:00:53.9]} 29.
Rd1 {[%clk 0:00:51.9]} 29... Rd8 {[%clk 0:00:51.1]} 30. Rc1 {[%clk 0:00:51.5]}
30... Rc8 {[%clk 0:00:47.1]} 31. h5 {[%clk 0:00:47.9]} 31... Bb7 {[%clk
0:00:45.6]} 32. Rc5 {[%clk 0:00:45.9]} 32... Nb8 {[%clk 0:00:41.1]} 33. Rxc8+
{[%clk 0:00:43.7]} 33... Bxc8 {[%clk 0:00:38.3]} 34. Kd4 {[%clk 0:00:42.8]}
34... Kd7 {[%clk 0:00:37.8]} 35. Nc1 {[%clk 0:00:41.4]} 35... Kc6 {[%clk
0:00:37.7]} 36. Nd3 {[%clk 0:00:40.5]} 36... Nd7 {[%clk 0:00:36.9]} 37. g4
{[%clk 0:00:40]} 37... g6 {[%clk 0:00:37]} 38. h6 {[%clk 0:00:39.8]} 38... Bb7
{[%clk 0:00:36.9]} 39. g5 {[%clk 0:00:40.1]} 39... Kd6 {[%clk 0:00:36.4]} 40.
Bf3 {[%clk 0:00:39.2]} 40... Kc7 {[%clk 0:00:32.6]} 41. Nc5 {[%clk 0:00:37.9]}
41... Nxc5 {[%clk 0:00:27.9]} 42. bxc5 {[%clk 0:00:38.8]} 42... Kd7 {[%clk
0:00:25]} 43. b4 {[%clk 0:00:36.3]} 43... Bc6 {[%clk 0:00:23.7]} 44. Ke5 {[%clk
0:00:36.6]} 44... Ke7 {[%clk 0:00:23.8]} 45. Bg4 {[%clk 0:00:37.1]} 45... Bd7
{[%clk 0:00:22.9]} 46. Be2 {[%clk 0:00:36.5]} 46... Bc6 {[%clk 0:00:22.7]} 47.
Bd3 {[%clk 0:00:37.1]} 47... Bb7 {[%clk 0:00:20.5]} 48. f5 {[%clk 0:00:36.9]}
48... exf5 {[%clk 0:00:21.4]} 49. exf5 {[%clk 0:00:37.3]} 49... Bc6 {[%clk
0:00:20.5]} 50. Be4 {[%clk 0:00:36.6]} 1-0

[Event "*** Titled Tuesday Blitz"]
[Site "Chess.com"]
[Date "2020.05.12"]
[Round "4"]
[White "Bathory44"]
[Black "InitiatingASC"]
[Result "1-0"]
[WhiteElo "2586"]
[BlackElo "2320"]
[TimeControl "180+1"]
[EndTime "10:38:45 PDT"]
[Termination "Bathory44 won by resignation"]

1. e4 {[%clk 0:03:00.9]} 1... c5 {[%clk 0:02:59.7]} 2. c3 {[%clk 0:03:00.8]}
2... Nf6 {[%clk 0:02:59.2]} 3. e5 {[%clk 0:03:01]} 3... Nd5 {[%clk 0:02:59.5]}
4. d4 {[%clk 0:03:01.6]} 4... cxd4 {[%clk 0:02:59.5]} 5. Nf3 {[%clk 0:03:02.2]}
5... Nc6 {[%clk 0:02:59.8]} 6. cxd4 {[%clk 0:03:01.7]} 6... d6 {[%clk
0:02:59.2]} 7. Bc4 {[%clk 0:03:02]} 7... e6 {[%clk 0:02:53.7]} 8. O-O {[%clk
0:02:59.6]} 8... Nb6 {[%clk 0:02:53.5]} 9. Bd3 {[%clk 0:02:55.4]} 9... Be7
{[%clk 0:02:50.5]} 10. exd6 {[%clk 0:02:53.1]} 10... Qxd6 {[%clk 0:02:48.5]} 11.
Nc3 {[%clk 0:02:52.9]} 11... a6 {[%clk 0:02:22.6]} 12. Re1 {[%clk 0:02:52.2]}
12... Bd7 {[%clk 0:02:18.2]} 13. Ne4 {[%clk 0:02:32.1]} 13... Qc7 {[%clk
0:02:13.5]} 14. Bg5 {[%clk 0:02:29.8]} 14... Bxg5 {[%clk 0:02:06.5]} 15. Nexg5
{[%clk 0:02:28.4]} 15... h6 {[%clk 0:02:06.9]} 16. Ne4 {[%clk 0:02:27.6]} 16...
Rd8 {[%clk 0:01:53.9]} 17. Qd2 {[%clk 0:02:20]} 17... Nd5 {[%clk 0:01:49.5]} 18.
Rac1 {[%clk 0:02:14.4]} 18... O-O {[%clk 0:01:43.4]} 19. a3 {[%clk 0:01:59.3]}
19... Bc8 {[%clk 0:01:43.3]} 20. Bb1 {[%clk 0:01:58.6]} 20... Qf4 {[%clk
0:01:41.9]} 21. Qd3 {[%clk 0:01:55.4]} 21... f5 {[%clk 0:01:13.7]} 22. Nc5
{[%clk 0:01:49.9]} 22... Qg4 {[%clk 0:01:09.6]} 23. h3 {[%clk 0:01:36.9]} 23...
Qg6 {[%clk 0:01:06.3]} 24. Qd2 {[%clk 0:01:34.3]} 24... Rfe8 {[%clk 0:01:01.9]}
25. Ba2 {[%clk 0:01:32.1]} 25... Qf6 {[%clk 0:00:58.3]} 26. Ne5 {[%clk
0:01:25.5]} 26... Nxe5 {[%clk 0:00:55.4]} 27. Rxe5 {[%clk 0:01:21.2]} 27... Kh7
{[%clk 0:00:49.4]} 28. Bxd5 {[%clk 0:01:13.7]} 28... exd5 {[%clk 0:00:46]} 29.
Rce1 {[%clk 0:01:11.7]} 29... Rf8 {[%clk 0:00:36]} 30. Nd3 {[%clk 0:01:05.3]}
30... f4 {[%clk 0:00:35.4]} 31. f3 {[%clk 0:00:59.1]} 31... Rd6 {[%clk
0:00:27.2]} 32. Kh2 {[%clk 0:00:54.8]} 32... Qh4 {[%clk 0:00:26.9]} 33. Qf2
{[%clk 0:00:52.9]} 33... Qxf2 {[%clk 0:00:20.2]} 34. Nxf2 {[%clk 0:00:53.8]}
34... Bf5 {[%clk 0:00:19.3]} 35. Rc1 {[%clk 0:00:51.7]} 35... Rff6 {[%clk
0:00:16.5]} 36. Rc7 {[%clk 0:00:47.9]} 36... Rb6 {[%clk 0:00:16.2]} 37. Ree7
{[%clk 0:00:44.8]} 37... Rxb2 {[%clk 0:00:13.6]} 38. Rxg7+ {[%clk 0:00:43.8]}
38... Kh8 {[%clk 0:00:14.1]} 39. Ng4 {[%clk 0:00:39.7]} 39... Rg6 {[%clk
0:00:09.5]} 40. Rh7+ {[%clk 0:00:30.2]} 40... Kg8 {[%clk 0:00:08.3]} 41. Nxh6+
{[%clk 0:00:29.4]} 41... Kf8 {[%clk 0:00:06.6]} 42. Rcf7+ {[%clk 0:00:28]} 1-0

[Event "*** Titled Tuesday Blitz"]
[Site "Chess.com"]
[Date "2020.05.12"]
[Round "4"]
[White "AlleyOoper"]
[Black "SPEEDSKATER"]
[Result "1/2-1/2"]
[WhiteElo "2599"]
[BlackElo "2761"]
[TimeControl "180+1"]
[EndTime "10:38:46 PDT"]
[Termination "Game drawn by agreement"]

1. d4 {[%clk 0:03:00.9]} 1... d5 {[%clk 0:02:56.6]} 2. Nf3 {[%clk 0:02:58.8]}
2... Nf6 {[%clk 0:02:55]} 3. Bf4 {[%clk 0:02:59.3]} 3... c5 {[%clk 0:02:54.3]}
4. e3 {[%clk 0:02:59.5]} 4... Nc6 {[%clk 0:02:53.8]} 5. Nbd2 {[%clk 0:03:00.1]}
5... cxd4 {[%clk 0:02:50.9]} 6. exd4 {[%clk 0:03:00.1]} 6... Bg4 {[%clk
0:02:51.5]} 7. c3 {[%clk 0:02:59.8]} 7... e6 {[%clk 0:02:51.1]} 8. Bd3 {[%clk
0:02:59.5]} 8... Bd6 {[%clk 0:02:50.3]} 9. Bg5 {[%clk 0:02:57.9]} 9... O-O
{[%clk 0:02:49.5]} 10. O-O {[%clk 0:02:56.2]} 10... Bh5 {[%clk 0:02:47.1]} 11.
Re1 {[%clk 0:02:53.8]} 11... Bg6 {[%clk 0:02:44.2]} 12. Bxg6 {[%clk 0:02:53.1]}
12... hxg6 {[%clk 0:02:45.1]} 13. Ne5 {[%clk 0:02:53.2]} 13... Be7 {[%clk
0:02:44.8]} 14. Ndf3 {[%clk 0:02:52.7]} 14... Nd7 {[%clk 0:02:43.4]} 15. Bxe7
{[%clk 0:02:48.7]} 15... Qxe7 {[%clk 0:02:43.2]} 16. Qd2 {[%clk 0:02:41.4]}
16... Rac8 {[%clk 0:02:25.2]} 17. g3 {[%clk 0:02:36]} 17... b5 {[%clk
0:02:21.9]} 18. a3 {[%clk 0:02:35.2]} 18... Ncxe5 {[%clk 0:02:09.8]} 19. Nxe5
{[%clk 0:02:32.3]} 19... Nxe5 {[%clk 0:02:09.1]} 20. Rxe5 {[%clk 0:02:30.2]}
20... a5 {[%clk 0:02:08.4]} 21. h4 {[%clk 0:02:27]} 21... Qf6 {[%clk 0:01:53.6]}
22. Kg2 {[%clk 0:02:20.4]} 22... Rc4 {[%clk 0:01:31.8]} 23. h5 {[%clk
0:02:10.6]} 23... gxh5 {[%clk 0:01:30.1]} 24. Rxh5 {[%clk 0:02:09.9]} 24... g6
{[%clk 0:01:30.4]} 25. Rh4 {[%clk 0:02:09.1]} 25... Rfc8 {[%clk 0:01:28]} 26.
Qh6 {[%clk 0:01:58.7]} 26... b4 {[%clk 0:01:12.9]} 27. axb4 {[%clk 0:01:58.2]}
27... axb4 {[%clk 0:01:13.8]} 28. Ra7 {[%clk 0:01:53.9]} 28... Qg7 {[%clk
0:01:06.4]} 29. Qd2 {[%clk 0:01:02.5]} 29... bxc3 {[%clk 0:01:00.2]} 30. bxc3
{[%clk 0:01:03.4]} 30... e5 {[%clk 0:00:54.8]} 31. Rd7 {[%clk 0:00:51.5]} 31...
Rxc3 {[%clk 0:00:49.1]} 32. dxe5 {[%clk 0:00:50.6]} 32... Qxe5 {[%clk 0:00:41]}
33. Rxd5 {[%clk 0:00:49.9]} 33... Qf6 {[%clk 0:00:25.6]} 34. Rf4 {[%clk
0:00:41.6]} 34... Qc6 {[%clk 0:00:25]} 35. Rd4 {[%clk 0:00:35.1]} 35... Rc2
{[%clk 0:00:23.9]} 36. Qe3 {[%clk 0:00:30.8]} 36... Re8 {[%clk 0:00:23]} 37. Qf3
{[%clk 0:00:30.4]} 37... Kg7 {[%clk 0:00:20.6]} 38. Rd2 {[%clk 0:00:24.6]} 38...
Rc3 {[%clk 0:00:19.1]} 39. R5d3 {[%clk 0:00:21.5]} 39... Rc5 {[%clk 0:00:19.2]}
40. Qxc6 {[%clk 0:00:21.3]} 40... Rxc6 {[%clk 0:00:20.1]} 41. Rf3 {[%clk
0:00:21.6]} 41... Rf6 {[%clk 0:00:20.2]} 42. Rd7 {[%clk 0:00:21.5]} 42... Rxf3
{[%clk 0:00:20]} 43. Kxf3 {[%clk 0:00:21.8]} 43... Re6 {[%clk 0:00:20.9]} 44.
Kg2 {[%clk 0:00:22.1]} 44... Rf6 {[%clk 0:00:21.4]} 45. Rd3 {[%clk 0:00:21.7]}
45... Ra6 {[%clk 0:00:21.3]} 46. Re3 {[%clk 0:00:22.1]} 46... g5 {[%clk
0:00:21.4]} 47. Rf3 {[%clk 0:00:22.2]} 47... Kg6 {[%clk 0:00:20.7]} 1/2-1/2

[Event "*** Titled Tuesday Blitz"]
[Site "Chess.com"]
[Date "2020.05.12"]
[Round "4"]
[White "KingChess345"]
[Black "przemekpiotrowski"]
[Result "0-1"]
[WhiteElo "2217"]
[BlackElo "2427"]
[TimeControl "180+1"]
[EndTime "10:38:46 PDT"]
[Termination "przemekpiotrowski won on time"]

1. d4 {[%clk 0:03:00.9]} 1... c5 {[%clk 0:03:00]} 2. Nf3 {[%clk 0:03:01.8]} 2...
cxd4 {[%clk 0:03:00.9]} 3. Nxd4 {[%clk 0:03:01.3]} 3... d5 {[%clk 0:02:59.9]} 4.
g3 {[%clk 0:03:00.9]} 4... e5 {[%clk 0:03:00]} 5. Nb3 {[%clk 0:03:00.3]} 5...
Nf6 {[%clk 0:03:00.6]} 6. Bg2 {[%clk 0:03:00.6]} 6... h6 {[%clk 0:03:01.2]} 7.
O-O {[%clk 0:02:58.2]} 7... Be6 {[%clk 0:03:01.7]} 8. c4 {[%clk 0:02:56.5]} 8...
Nc6 {[%clk 0:03:02]} 9. Nc3 {[%clk 0:02:38.2]} 9... dxc4 {[%clk 0:02:54.4]} 10.
Bxc6+ {[%clk 0:02:37.7]} 10... bxc6 {[%clk 0:02:55.2]} 11. Qxd8+ {[%clk
0:02:37.5]} 11... Rxd8 {[%clk 0:02:56.1]} 12. Na5 {[%clk 0:02:37.5]} 12... Bd5
{[%clk 0:02:55.3]} 13. Be3 {[%clk 0:01:46.9]} 13... Bb4 {[%clk 0:02:52.1]} 14.
Nxd5 {[%clk 0:01:46.9]} 14... Bxa5 {[%clk 0:02:34.2]} 15. Nxf6+ {[%clk
0:01:36.7]} 15... gxf6 {[%clk 0:02:34.2]} 16. Rac1 {[%clk 0:01:34.8]} 16... c3
{[%clk 0:02:31.7]} 17. bxc3 {[%clk 0:01:16.3]} 17... Bb6 {[%clk 0:02:32]} 18.
Rb1 {[%clk 0:01:04.4]} 18... Bxe3 {[%clk 0:02:28.6]} 19. fxe3 {[%clk 0:01:05.3]}
19... Ke7 {[%clk 0:02:26.6]} 20. Rb7+ {[%clk 0:01:03.3]} 20... Ke6 {[%clk
0:02:26.9]} 21. Rxa7 {[%clk 0:00:56.9]} 21... Rd2 {[%clk 0:02:27.4]} 22. Kf2
{[%clk 0:00:40.2]} 22... Rb8 {[%clk 0:02:22.3]} 23. Rc7 {[%clk 0:00:33.2]} 23...
Rbb2 {[%clk 0:02:14.5]} 24. Rxc6+ {[%clk 0:00:33.1]} 24... Kd5 {[%clk
0:02:12.9]} 25. Rxf6 {[%clk 0:00:29.9]} 25... Rxe2+ {[%clk 0:02:13.3]} 26. Kf3
{[%clk 0:00:27.4]} 26... Rxh2 {[%clk 0:02:06]} 27. Rxf7 {[%clk 0:00:20.5]} 27...
Rxa2 {[%clk 0:02:05.4]} 28. Rd1+ {[%clk 0:00:19.8]} 28... Ke6 {[%clk 0:02:04.9]}
29. Rb7 {[%clk 0:00:15.4]} 29... Raf2+ {[%clk 0:01:50]} 30. Ke4 {[%clk
0:00:14.8]} 30... Rc2 {[%clk 0:01:44.4]} 31. Rb6+ {[%clk 0:00:14.7]} 31... Ke7
{[%clk 0:01:44.8]} 32. Ra1 {[%clk 0:00:14.6]} 32... Rxc3 {[%clk 0:01:42.4]} 33.
Ra7+ {[%clk 0:00:14.9]} 33... Kd8 {[%clk 0:01:42.8]} 34. Rb8+ {[%clk 0:00:12.8]}
34... Rc8 {[%clk 0:01:42.5]} 35. Rxc8+ {[%clk 0:00:12.4]} 35... Kxc8 {[%clk
0:01:42.1]} 36. Kxe5 {[%clk 0:00:12.6]} 36... Rg2 {[%clk 0:01:41.4]} 37. Kf4
{[%clk 0:00:12.5]} 37... Rf2+ {[%clk 0:01:39.9]} 38. Kg4 {[%clk 0:00:11.9]}
38... Re2 {[%clk 0:01:39]} 39. Kf3 {[%clk 0:00:12.3]} 39... Re1 {[%clk
0:01:39.3]} 40. Rh7 {[%clk 0:00:12.7]} 40... Rf1+ {[%clk 0:01:38.4]} 41. Kg4
{[%clk 0:00:12.9]} 41... Rf6 {[%clk 0:01:38.1]} 42. e4 {[%clk 0:00:12.1]} 42...
Rg6+ {[%clk 0:01:38.4]} 43. Kf4 {[%clk 0:00:11.7]} 43... Rf6+ {[%clk 0:01:38.7]}
44. Ke3 {[%clk 0:00:11.5]} 44... Rg6 {[%clk 0:01:38.2]} 45. Kf4 {[%clk
0:00:08.6]} 45... Rf6+ {[%clk 0:01:37.4]} 46. Ke5 {[%clk 0:00:08.8]} 46... Rg6
{[%clk 0:01:37.5]} 47. Kf5 {[%clk 0:00:06.9]} 47... Rxg3 {[%clk 0:01:34.8]} 48.
Rxh6 {[%clk 0:00:07.1]} 48... Kd7 {[%clk 0:01:35.1]} 49. Rh7+ {[%clk 0:00:05.9]}
49... Ke8 {[%clk 0:01:35]} 50. e5 {[%clk 0:00:05]} 50... Kf8 {[%clk 0:01:16.6]}
51. Kf6 {[%clk 0:00:04]} 51... Rf3+ {[%clk 0:01:15.3]} 52. Ke6 {[%clk
0:00:03.8]} 52... Ra3 {[%clk 0:01:15.4]} 53. Rh8+ {[%clk 0:00:02.9]} 53... Kg7
{[%clk 0:01:15.9]} 54. Rd8 {[%clk 0:00:03.3]} 54... Kg6 {[%clk 0:01:12.1]} 55.
Rg8+ {[%clk 0:00:01.3]} 55... Kh7 {[%clk 0:01:11.9]} 56. Rf8 {[%clk 0:00:01.3]}
56... Kg7 {[%clk 0:01:10]} 57. Rf7+ {[%clk 0:00:01.1]} 57... Kg6 {[%clk
0:01:10.4]} 0-1

[Event "*** Titled Tuesday Blitz"]
[Site "Chess.com"]
[Date "2020.05.12"]
[Round "4"]
[White "RestartingChess"]
[Black "12teen"]
[Result "1-0"]
[WhiteElo "2528"]
[BlackElo "2752"]
[TimeControl "180+1"]
[EndTime "10:38:47 PDT"]
[Termination "RestartingChess won by resignation"]

1. e4 {[%clk 0:03:00.9]} 1... b6 {[%clk 0:02:59.7]} 2. d4 {[%clk 0:03:01]} 2...
Bb7 {[%clk 0:03:00.3]} 3. Nc3 {[%clk 0:03:01]} 3... e6 {[%clk 0:03:00.9]} 4. Nf3
{[%clk 0:03:00.1]} 4... Nf6 {[%clk 0:03:01.4]} 5. Bd3 {[%clk 0:03:00.5]} 5... d5
{[%clk 0:03:01.5]} 6. e5 {[%clk 0:03:00.5]} 6... Nfd7 {[%clk 0:03:02.1]} 7. Ne2
{[%clk 0:02:58.4]} 7... c5 {[%clk 0:03:00.3]} 8. c3 {[%clk 0:02:58.9]} 8... Be7
{[%clk 0:03:00.9]} 9. Ng3 {[%clk 0:02:59.1]} 9... Nc6 {[%clk 0:03:00.8]} 10. O-O
{[%clk 0:02:58.8]} 10... a6 {[%clk 0:03:00.7]} 11. a3 {[%clk 0:02:58.6]} 11...
h5 {[%clk 0:03:00.9]} 12. h3 {[%clk 0:02:50.3]} 12... g5 {[%clk 0:03:00.7]} 13.
Nh2 {[%clk 0:02:35.7]} 13... g4 {[%clk 0:02:54.1]} 14. hxg4 {[%clk 0:02:27.9]}
14... hxg4 {[%clk 0:02:55]} 15. Qxg4 {[%clk 0:02:26.4]} 15... Qc7 {[%clk
0:02:54]} 16. Qg7 {[%clk 0:02:10.5]} 16... O-O-O {[%clk 0:02:50.8]} 17. Qxf7
{[%clk 0:02:11]} 17... Kb8 {[%clk 0:02:36.6]} 18. Qxe6 {[%clk 0:02:06.6]} 18...
Rde8 {[%clk 0:02:31.3]} 19. Bg6 {[%clk 0:01:59.5]} 19... Nf8 {[%clk 0:02:20.5]}
20. Qf7 {[%clk 0:01:56.4]} 20... Nxg6 {[%clk 0:02:19.9]} 21. Qxg6 {[%clk
0:01:57.3]} 21... cxd4 {[%clk 0:02:17.8]} 22. cxd4 {[%clk 0:01:54.5]} 22... Nxd4
{[%clk 0:02:18.1]} 23. Be3 {[%clk 0:01:52.2]} 23... Nb3 {[%clk 0:01:45.6]} 24.
Rad1 {[%clk 0:01:47.7]} 24... d4 {[%clk 0:01:44]} 25. Bxd4 {[%clk 0:01:44.2]}
25... Nxd4 {[%clk 0:01:43.7]} 26. Rxd4 {[%clk 0:01:44.3]} 26... Bc5 {[%clk
0:01:38]} 27. Rg4 {[%clk 0:01:36.1]} 27... Qxe5 {[%clk 0:01:26.8]} 28. b4 {[%clk
0:01:30.9]} 28... Bd6 {[%clk 0:01:22]} 29. Rg5 {[%clk 0:01:14.5]} 29... Qd4
{[%clk 0:01:16]} 30. Rg4 {[%clk 0:00:44.4]} 30... Qd5 {[%clk 0:01:11.6]} 31. Nf3
{[%clk 0:00:40.5]} 31... Re6 {[%clk 0:01:04.7]} 32. Qf5 {[%clk 0:00:34.7]} 32...
Qa2 {[%clk 0:00:40.5]} 33. Rh4 {[%clk 0:00:22.1]} 33... Rf8 {[%clk 0:00:33.4]}
34. Qd3 {[%clk 0:00:15]} 34... Ref6 {[%clk 0:00:28.6]} 35. Ne4 {[%clk
0:00:13.7]} 35... Rd8 {[%clk 0:00:23.5]} 36. Nxd6 {[%clk 0:00:12.2]} 36... Rdxd6
{[%clk 0:00:21.9]} 37. Qe3 {[%clk 0:00:10.6]} 37... Bxf3 {[%clk 0:00:20.4]} 38.
gxf3 {[%clk 0:00:11.5]} 38... Rg6+ {[%clk 0:00:19.2]} 39. Rg4 {[%clk 0:00:12]}
39... Rh6 {[%clk 0:00:16.6]} 40. Qe8+ {[%clk 0:00:11.9]} 40... Kc7 {[%clk
0:00:09.7]} 41. Rg7+ {[%clk 0:00:11.5]} 1-0